[Event "*** Titled Tuesday Blitz"]
[Site "Chess.com"]
[Date "2020.10.20"]
[Round "6"]
[White "vaishali2001"]
[Black "plumalka"]
[Result "0-1"]
[WhiteElo "2574"]
[BlackElo "2432"]
[TimeControl "180+1"]
[EndTime "11:09:06 PDT"]
[Termination "plumalka won by resignation"]

1. d4 {[%clk 0:02:57.2]} 1... Nf6 {[%clk 0:02:59.5]} 2. Bf4 {[%clk 0:02:56.7]}
2... d5 {[%clk 0:02:58.1]} 3. e3 {[%clk 0:02:55.2]} 3... c5 {[%clk 0:02:57.9]}
4. c3 {[%clk 0:02:51.2]} 4... Nc6 {[%clk 0:02:57.3]} 5. Nd2 {[%clk 0:02:51.3]}
5... Bf5 {[%clk 0:02:54.5]} 6. Qb3 {[%clk 0:02:50.8]} 6... Qb6 {[%clk
0:02:51.5]} 7. dxc5 {[%clk 0:02:49.3]} 7... Qxb3 {[%clk 0:02:42]} 8. Nxb3 {[%clk
0:02:50.2]} 8... e5 {[%clk 0:02:41.9]} 9. Bg3 {[%clk 0:02:50.6]} 9... Ne4 {[%clk
0:02:39.4]} 10. Bb5 {[%clk 0:02:50.2]} 10... f6 {[%clk 0:02:36.5]} 11. Na5
{[%clk 0:02:29]} 11... Bd7 {[%clk 0:02:20.1]} 12. Nxb7 {[%clk 0:01:39.5]} 12...
Rb8 {[%clk 0:02:19.2]} 13. Bxc6 {[%clk 0:01:32.9]} 13... Bxc6 {[%clk 0:02:17.1]}
14. Na5 {[%clk 0:01:33.5]} 14... Kd7 {[%clk 0:02:03.5]} 15. b4 {[%clk
0:01:28.2]} 15... Nxc3 {[%clk 0:01:59.6]} 16. a3 {[%clk 0:01:27.7]} 16... h5
{[%clk 0:01:42.1]} 17. h4 {[%clk 0:01:21.9]} 17... g6 {[%clk 0:01:36.6]} 18. Ne2
{[%clk 0:01:20.4]} 18... Na4 {[%clk 0:01:34.8]} 19. Kd2 {[%clk 0:00:51.8]} 19...
Be7 {[%clk 0:01:31.2]} 20. Nc3 {[%clk 0:00:49.2]} 20... Nxc3 {[%clk 0:01:16.4]}
21. Kxc3 {[%clk 0:00:50.1]} 21... Bd8 {[%clk 0:01:15.9]} 22. Rhd1 {[%clk
0:00:41.4]} 22... Bxa5 {[%clk 0:01:14.4]} 23. bxa5 {[%clk 0:00:37.9]} 23... Rb5
{[%clk 0:01:14.1]} 24. Rab1 {[%clk 0:00:32.9]} 24... Rhb8 {[%clk 0:01:13.2]} 25.
Rb4 {[%clk 0:00:27]} 25... Rxc5+ {[%clk 0:01:11]} 26. Kb2 {[%clk 0:00:21.9]}
26... Rbb5 {[%clk 0:01:07.5]} 27. a6 {[%clk 0:00:21]} 27... Ra5 {[%clk
0:01:03.3]} 28. f4 {[%clk 0:00:17]} 28... Ke6 {[%clk 0:00:52.6]} 29. fxe5 {[%clk
0:00:15.5]} 29... fxe5 {[%clk 0:00:53.3]} 30. Rb8 {[%clk 0:00:08.8]} 30... Rcb5+
{[%clk 0:00:52.3]} 31. Rxb5 {[%clk 0:00:08.3]} 31... Rxb5+ {[%clk 0:00:53.2]}
32. Ka2 {[%clk 0:00:06.1]} 32... Ra5 {[%clk 0:00:53.5]} 33. Rf1 {[%clk
0:00:04.5]} 33... Rxa6 {[%clk 0:00:51.7]} 34. Rf8 {[%clk 0:00:05]} 34... Rb6
{[%clk 0:00:50.9]} 35. Rg8 {[%clk 0:00:04.6]} 35... Kf5 {[%clk 0:00:45.9]} 36.
Rg7 {[%clk 0:00:04.8]} 36... Rb7 {[%clk 0:00:44.1]} 37. Rg8 {[%clk 0:00:03.9]}
37... Ke4 {[%clk 0:00:40.9]} 38. Rxg6 {[%clk 0:00:03.2]} 38... Kxe3 {[%clk
0:00:39.1]} 39. Rxc6 {[%clk 0:00:03]} 39... e4 {[%clk 0:00:36.7]} 40. Rd6 {[%clk
0:00:03.2]} 40... d4 {[%clk 0:00:36.9]} 41. Be5 {[%clk 0:00:03.7]} 41... d3
{[%clk 0:00:36.9]} 42. Bc3 {[%clk 0:00:04.3]} 42... Rc7 {[%clk 0:00:36.1]} 43.
Bb4 {[%clk 0:00:02.6]} 43... Ke2 {[%clk 0:00:36.2]} 44. Kb3 {[%clk 0:00:02.7]}
44... e3 {[%clk 0:00:36.4]} 45. Re6 {[%clk 0:00:02.4]} 45... d2 {[%clk 0:00:36]}
46. Bxd2 {[%clk 0:00:02.6]} 46... Kxd2 {[%clk 0:00:36.9]} 47. Rd6+ {[%clk
0:00:02.3]} 47... Ke1 {[%clk 0:00:36.6]} 48. Kb4 {[%clk 0:00:01.8]} 48... Re7
{[%clk 0:00:34.5]} 49. Kb5 {[%clk 0:00:02]} 49... e2 {[%clk 0:00:34.9]} 50. Ka6
{[%clk 0:00:02.1]} 50... Kf1 {[%clk 0:00:34.8]} 51. a4 {[%clk 0:00:02.7]} 51...
e1=Q {[%clk 0:00:34.9]} 52. Rf6+ {[%clk 0:00:03.6]} 0-1

[Event "*** Titled Tuesday Blitz"]
[Site "Chess.com"]
[Date "2020.10.20"]
[Round "6"]
[White "MisiekZielony"]
[Black "crazy_but_lazy"]
[Result "0-1"]
[WhiteElo "2275"]
[BlackElo "2471"]
[TimeControl "180+1"]
[EndTime "11:09:06 PDT"]
[Termination "crazy_but_lazy won on time"]

1. c4 {[%clk 0:03:00]} 1... e5 {[%clk 0:02:59.5]} 2. Nc3 {[%clk 0:02:59.9]} 2...
Bb4 {[%clk 0:02:59]} 3. Qc2 {[%clk 0:02:59.6]} 3... Nf6 {[%clk 0:02:55]} 4. Nf3
{[%clk 0:02:59]} 4... d6 {[%clk 0:02:42.4]} 5. e3 {[%clk 0:02:34]} 5... O-O
{[%clk 0:02:40.5]} 6. d3 {[%clk 0:02:28.8]} 6... Bf5 {[%clk 0:02:24]} 7. a3
{[%clk 0:02:18.8]} 7... Bxc3+ {[%clk 0:02:20.4]} 8. Qxc3 {[%clk 0:02:18.9]} 8...
Nc6 {[%clk 0:02:18.3]} 9. Be2 {[%clk 0:02:11.1]} 9... e4 {[%clk 0:02:04.9]} 10.
Nd4 {[%clk 0:02:08]} 10... Nxd4 {[%clk 0:02:02.5]} 11. Qxd4 {[%clk 0:02:07.1]}
11... exd3 {[%clk 0:02:02.1]} 12. Bxd3 {[%clk 0:02:06.9]} 12... Bxd3 {[%clk
0:02:02.3]} 13. Qxd3 {[%clk 0:02:06.9]} 13... Qe7 {[%clk 0:02:02.4]} 14. O-O
{[%clk 0:01:59.9]} 14... a5 {[%clk 0:01:59.9]} 15. b3 {[%clk 0:01:59.4]} 15...
b6 {[%clk 0:01:44.4]} 16. Bb2 {[%clk 0:01:59]} 16... Ne4 {[%clk 0:01:41.8]} 17.
b4 {[%clk 0:01:42.5]} 17... Qe6 {[%clk 0:01:02]} 18. f3 {[%clk 0:00:57.3]} 18...
Nf6 {[%clk 0:00:57.5]} 19. Rfd1 {[%clk 0:00:51.1]} 19... Rfe8 {[%clk 0:00:56.1]}
20. e4 {[%clk 0:00:50.8]} 20... a4 {[%clk 0:00:48.1]} 21. Rac1 {[%clk 0:00:49]}
21... Nh5 {[%clk 0:00:39.8]} 22. Qd2 {[%clk 0:00:42]} 22... Qg6 {[%clk
0:00:25.7]} 23. Kh1 {[%clk 0:00:31.9]} 23... Nf6 {[%clk 0:00:18.8]} 24. c5
{[%clk 0:00:26]} 24... dxc5 {[%clk 0:00:18.6]} 25. bxc5 {[%clk 0:00:26.1]} 25...
b5 {[%clk 0:00:19.2]} 26. c6 {[%clk 0:00:24.6]} 26... h5 {[%clk 0:00:16.9]} 27.
Rc5 {[%clk 0:00:23.7]} 27... Rab8 {[%clk 0:00:15.1]} 28. Rg5 {[%clk 0:00:19.1]}
28... Qh6 {[%clk 0:00:15]} 29. Qf4 {[%clk 0:00:17]} 29... Re6 {[%clk 0:00:08.3]}
30. Rd7 {[%clk 0:00:16.8]} 30... b4 {[%clk 0:00:03.8]} 31. h4 {[%clk 0:00:07.1]}
31... bxa3 {[%clk 0:00:03.8]} 32. Bxa3 {[%clk 0:00:07]} 32... Rb1+ {[%clk
0:00:04.1]} 33. Kh2 {[%clk 0:00:06.7]} 33... Rb8 {[%clk 0:00:03.4]} 34. Rxc7
{[%clk 0:00:06.2]} 34... Ne8 {[%clk 0:00:01.7]} 35. Rd7 {[%clk 0:00:04.5]} 35...
f6 {[%clk 0:00:02.2]} 36. Qf5 {[%clk 0:00:01.4]} 36... fxg5 {[%clk 0:00:02.4]}
37. Qf7+ {[%clk 0:00:01.3]} 37... Kh7 {[%clk 0:00:02.7]} 38. hxg5 {[%clk
0:00:01.6]} 38... Qg6 {[%clk 0:00:02.6]} 0-1

[Event "*** Titled Tuesday Blitz"]
[Site "Chess.com"]
[Date "2020.10.20"]
[Round "6"]
[White "lucachess49"]
[Black "chessknight02"]
[Result "0-1"]
[WhiteElo "2364"]
[BlackElo "2270"]
[TimeControl "180+1"]
[EndTime "11:09:06 PDT"]
[Termination "chessknight02 won by resignation"]

1. d4 {[%clk 0:02:59.2]} 1... Nf6 {[%clk 0:02:59.8]} 2. c4 {[%clk 0:02:58.8]}
2... e6 {[%clk 0:02:57.3]} 3. Nc3 {[%clk 0:02:58.1]} 3... Bb4 {[%clk 0:02:56.9]}
4. e3 {[%clk 0:02:58.2]} 4... O-O {[%clk 0:02:56]} 5. Ne2 {[%clk 0:02:49.9]}
5... Re8 {[%clk 0:02:47.5]} 6. a3 {[%clk 0:02:49]} 6... Bf8 {[%clk 0:02:46.3]}
7. Ng3 {[%clk 0:02:48.4]} 7... d5 {[%clk 0:02:44.5]} 8. Be2 {[%clk 0:02:45.8]}
8... b6 {[%clk 0:02:44.9]} 9. cxd5 {[%clk 0:02:39.9]} 9... exd5 {[%clk
0:02:36.3]} 10. O-O {[%clk 0:02:39.3]} 10... c6 {[%clk 0:02:31]} 11. b4 {[%clk
0:02:35.3]} 11... b5 {[%clk 0:02:30.5]} 12. Qc2 {[%clk 0:02:25.9]} 12... Nbd7
{[%clk 0:02:30.1]} 13. a4 {[%clk 0:02:21.7]} 13... bxa4 {[%clk 0:02:08.2]} 14.
Qxa4 {[%clk 0:01:55.5]} 14... Nb6 {[%clk 0:02:03.7]} 15. Qb3 {[%clk 0:01:52.4]}
15... Bg4 {[%clk 0:01:51.4]} 16. Bd3 {[%clk 0:01:48.7]} 16... h5 {[%clk
0:01:42.6]} 17. h3 {[%clk 0:01:47.2]} 17... h4 {[%clk 0:01:35]} 18. Nf5 {[%clk
0:01:41]} 18... Bxf5 {[%clk 0:01:29.7]} 19. Bxf5 {[%clk 0:01:41.9]} 19... Nc4
{[%clk 0:01:18.7]} 20. Bd3 {[%clk 0:01:41.2]} 20... Nd6 {[%clk 0:01:18]} 21. Bd2
{[%clk 0:01:23.1]} 21... Nfe4 {[%clk 0:01:08.9]} 22. Nxe4 {[%clk 0:01:22.4]}
22... Nxe4 {[%clk 0:01:05.4]} 23. Bxe4 {[%clk 0:01:22.2]} 23... Rxe4 {[%clk
0:01:02.5]} 24. Ra6 {[%clk 0:01:22.7]} 24... Qd7 {[%clk 0:00:52.8]} 25. Rc1
{[%clk 0:01:18.2]} 25... Re6 {[%clk 0:00:52.8]} 26. Qa4 {[%clk 0:01:14.7]} 26...
Rg6 {[%clk 0:00:50.9]} 27. Kf1 {[%clk 0:01:14.2]} 27... Qf5 {[%clk 0:00:45.5]}
28. Qd1 {[%clk 0:00:50.6]} 28... Qd3+ {[%clk 0:00:38.7]} 29. Qe2 {[%clk
0:00:49.5]} 29... Qe4 {[%clk 0:00:27]} 30. f3 {[%clk 0:00:43.7]} 30... Qe8
{[%clk 0:00:26.1]} 31. b5 {[%clk 0:00:31.6]} 31... cxb5 {[%clk 0:00:22.9]} 32.
Rxg6 {[%clk 0:00:32.5]} 32... fxg6 {[%clk 0:00:23.2]} 33. Qd3 {[%clk 0:00:27]}
33... a5 {[%clk 0:00:20.4]} 34. Qb3 {[%clk 0:00:26.8]} 34... Qd7 {[%clk
0:00:19.2]} 35. Qd3 {[%clk 0:00:17.2]} 35... b4 {[%clk 0:00:18.9]} 36. Qxg6
{[%clk 0:00:16.5]} 36... a4 {[%clk 0:00:19.5]} 37. Ra1 {[%clk 0:00:09.8]} 37...
b3 {[%clk 0:00:18.5]} 38. Qb1 {[%clk 0:00:08.8]} 38... Qb5+ {[%clk 0:00:17.9]}
39. Kf2 {[%clk 0:00:08.2]} 39... a3 {[%clk 0:00:18.6]} 40. Bc3 {[%clk
0:00:05.6]} 40... Rc8 {[%clk 0:00:16]} 41. Qe1 {[%clk 0:00:05.2]} 41... Qc4
{[%clk 0:00:15.5]} 42. Bd2 {[%clk 0:00:04]} 42... Qd3 {[%clk 0:00:13.3]} 43. Rb1
{[%clk 0:00:02.2]} 43... Rc2 {[%clk 0:00:13.2]} 44. Rd1 {[%clk 0:00:02.3]} 44...
b2 {[%clk 0:00:13.1]} 45. e4 {[%clk 0:00:02.5]} 45... a2 {[%clk 0:00:13.4]} 46.
e5 {[%clk 0:00:02.3]} 46... b1=Q {[%clk 0:00:13.7]} 47. Rxb1 {[%clk 0:00:02.1]}
47... Rxd2+ {[%clk 0:00:14.3]} 0-1

[Event "*** Titled Tuesday Blitz"]
[Site "Chess.com"]
[Date "2020.10.20"]
[Round "6"]
[White "LiamVrolijk"]
[Black "QuintilianoR"]
[Result "0-1"]
[WhiteElo "2838"]
[BlackElo "2667"]
[TimeControl "180+1"]
[EndTime "11:09:07 PDT"]
[Termination "QuintilianoR won on time"]

1. d4 {[%clk 0:03:00.9]} 1... Nf6 {[%clk 0:02:58]} 2. Bg5 {[%clk 0:03:00.7]}
2... d5 {[%clk 0:02:56.9]} 3. e3 {[%clk 0:03:00.7]} 3... e6 {[%clk 0:02:54.2]}
4. Nd2 {[%clk 0:02:58.6]} 4... h6 {[%clk 0:02:53]} 5. Bh4 {[%clk 0:02:58.5]}
5... Be7 {[%clk 0:02:47.3]} 6. Bd3 {[%clk 0:02:56.9]} 6... b6 {[%clk 0:02:44.7]}
7. c3 {[%clk 0:02:56.4]} 7... O-O {[%clk 0:02:43.3]} 8. f4 {[%clk 0:02:48.5]}
8... Ba6 {[%clk 0:02:39.8]} 9. Bc2 {[%clk 0:02:48.4]} 9... c5 {[%clk 0:02:36.8]}
10. Ngf3 {[%clk 0:02:48.3]} 10... Nc6 {[%clk 0:02:34.7]} 11. Bxf6 {[%clk
0:02:40.1]} 11... Bxf6 {[%clk 0:02:34]} 12. h4 {[%clk 0:02:41]} 12... cxd4
{[%clk 0:02:13.6]} 13. exd4 {[%clk 0:02:41.2]} 13... Qd6 {[%clk 0:02:09]} 14.
Ne5 {[%clk 0:02:37]} 14... Bxe5 {[%clk 0:01:47.2]} 15. fxe5 {[%clk 0:02:30.6]}
15... Qe7 {[%clk 0:01:41.9]} 16. Qh5 {[%clk 0:02:23.8]} 16... Rac8 {[%clk
0:01:32.9]} 17. Nf3 {[%clk 0:02:03.2]} 17... Nb4 {[%clk 0:01:24.6]} 18. Kd2
{[%clk 0:01:47.5]} 18... Nxc2 {[%clk 0:01:17.1]} 19. Kxc2 {[%clk 0:01:48.4]}
19... f5 {[%clk 0:00:58]} 20. exf6 {[%clk 0:01:47.2]} 20... Rxf6 {[%clk
0:00:55]} 21. Rae1 {[%clk 0:01:45.3]} 21... b5 {[%clk 0:00:54.2]} 22. Qxd5
{[%clk 0:01:36.7]} 22... b4 {[%clk 0:00:52]} 23. Qa5 {[%clk 0:01:21.4]} 23...
Bb7 {[%clk 0:00:50.7]} 24. Re3 {[%clk 0:01:18.6]} 24... bxc3 {[%clk 0:00:42.2]}
25. bxc3 {[%clk 0:01:18.9]} 25... Qd7 {[%clk 0:00:32.6]} 26. Kd2 {[%clk
0:00:51.1]} 26... Rf5 {[%clk 0:00:28.4]} 27. Qa3 {[%clk 0:00:45.7]} 27... Qc7
{[%clk 0:00:21.9]} 28. Rhe1 {[%clk 0:00:40.3]} 28... Ra5 {[%clk 0:00:21.2]} 29.
Qb2 {[%clk 0:00:29.1]} 29... Bd5 {[%clk 0:00:21.1]} 30. Ra1 {[%clk 0:00:26.2]}
30... Qg3 {[%clk 0:00:18]} 31. a4 {[%clk 0:00:09]} 31... Qxg2+ {[%clk
0:00:16.3]} 32. Re2 {[%clk 0:00:08.5]} 32... Qxf3 {[%clk 0:00:15.7]} 33. Qb4
{[%clk 0:00:08.7]} 33... Ra6 {[%clk 0:00:14.5]} 34. Rae1 {[%clk 0:00:07.6]}
34... Rac6 {[%clk 0:00:14.2]} 35. Re3 {[%clk 0:00:07.9]} 35... Qf4 {[%clk
0:00:14.3]} 36. Kc2 {[%clk 0:00:05.3]} 36... Qxh4 {[%clk 0:00:14.5]} 37. R1e2
{[%clk 0:00:05.4]} 37... Qd8 {[%clk 0:00:13.9]} 38. Rg3 {[%clk 0:00:04.5]} 38...
Qc7 {[%clk 0:00:13.9]} 39. Ree3 {[%clk 0:00:04.2]} 39... a5 {[%clk 0:00:12.2]}
40. Qa3 {[%clk 0:00:04.6]} 40... Rc4 {[%clk 0:00:12]} 41. Qa1 {[%clk 0:00:04.7]}
41... Rxd4 {[%clk 0:00:11.9]} 42. Qg1 {[%clk 0:00:03.5]} 42... Re4 {[%clk
0:00:11.8]} 43. Rd3 {[%clk 0:00:02.9]} 43... Rxa4 {[%clk 0:00:11.5]} 44. Kb2
{[%clk 0:00:02.6]} 44... Ra2+ {[%clk 0:00:11.3]} 45. Kb1 {[%clk 0:00:03.3]}
45... Rb8+ {[%clk 0:00:11.5]} 0-1

[Event "*** Titled Tuesday Blitz"]
[Site "Chess.com"]
[Date "2020.10.20"]
[Round "6"]
[White "sergiochess83"]
[Black "arminmusovic"]
[Result "1-0"]
[WhiteElo "2754"]
[BlackElo "2567"]
[TimeControl "180+1"]
[EndTime "11:09:08 PDT"]
[Termination "sergiochess83 won on time"]

1. e4 {[%clk 0:03:00.9]} 1... c6 {[%clk 0:03:00.5]} 2. d4 {[%clk 0:02:58.6]}
2... d5 {[%clk 0:03:01.4]} 3. e5 {[%clk 0:02:59.1]} 3... c5 {[%clk 0:03:01.7]}
4. Nf3 {[%clk 0:02:58.4]} 4... Nc6 {[%clk 0:03:01.5]} 5. dxc5 {[%clk 0:02:54.4]}
5... Bg4 {[%clk 0:03:01.4]} 6. Bb5 {[%clk 0:02:52.9]} 6... e6 {[%clk 0:03:00.4]}
7. Be3 {[%clk 0:02:52.6]} 7... Ne7 {[%clk 0:02:58.7]} 8. c3 {[%clk 0:02:49.3]}
8... a6 {[%clk 0:02:57.8]} 9. Ba4 {[%clk 0:02:48.4]} 9... h6 {[%clk 0:02:51.8]}
10. Nbd2 {[%clk 0:02:45.9]} 10... g5 {[%clk 0:02:47.8]} 11. h4 {[%clk
0:02:42.5]} 11... Bxf3 {[%clk 0:02:42.8]} 12. Nxf3 {[%clk 0:02:40.1]} 12... g4
{[%clk 0:02:39.5]} 13. Nd4 {[%clk 0:02:37.5]} 13... h5 {[%clk 0:02:39.7]} 14. f4
{[%clk 0:01:42.2]} 14... Qc7 {[%clk 0:02:13.5]} 15. b4 {[%clk 0:01:36.8]} 15...
Bh6 {[%clk 0:02:07.2]} 16. g3 {[%clk 0:01:22.7]} 16... O-O {[%clk 0:01:58.3]}
17. Bxc6 {[%clk 0:01:15.7]} 17... bxc6 {[%clk 0:01:56.3]} 18. a4 {[%clk
0:01:06.4]} 18... Ng6 {[%clk 0:01:48.6]} 19. Qd3 {[%clk 0:01:02.2]} 19... a5
{[%clk 0:01:31.2]} 20. O-O {[%clk 0:01:01.8]} 20... axb4 {[%clk 0:01:28.1]} 21.
cxb4 {[%clk 0:01:02.7]} 21... Rfb8 {[%clk 0:01:24.5]} 22. Rfb1 {[%clk
0:00:46.4]} 22... Rb7 {[%clk 0:01:13.2]} 23. Nxe6 {[%clk 0:00:43.1]} 23... Qd7
{[%clk 0:00:54]} 24. Nd4 {[%clk 0:00:42.9]} 24... Re8 {[%clk 0:00:48.9]} 25. b5
{[%clk 0:00:40]} 25... Rc8 {[%clk 0:00:28.6]} 26. Qf5 {[%clk 0:00:35]} 26...
cxb5 {[%clk 0:00:22.7]} 27. c6 {[%clk 0:00:31.4]} 27... Qxf5 {[%clk 0:00:20.2]}
28. Nxf5 {[%clk 0:00:30.8]} 28... Rxc6 {[%clk 0:00:19.5]} 29. axb5 {[%clk
0:00:29.3]} 29... Rc3 {[%clk 0:00:17.7]} 30. Nxh6+ {[%clk 0:00:29.2]} 30... Kh7
{[%clk 0:00:17.9]} 31. Nf5 {[%clk 0:00:30.1]} 31... d4 {[%clk 0:00:16]} 32. Bxd4
{[%clk 0:00:29.4]} 32... Rd3 {[%clk 0:00:15.2]} 33. Rd1 {[%clk 0:00:29.4]} 33...
Rxd1+ {[%clk 0:00:14.8]} 34. Rxd1 {[%clk 0:00:28.8]} 34... Rxb5 {[%clk
0:00:15.7]} 35. Nd6 {[%clk 0:00:23.6]} 35... Rb3 {[%clk 0:00:15]} 36. Bf2 {[%clk
0:00:23.7]} 36... Ne7 {[%clk 0:00:14.6]} 37. Nxf7 {[%clk 0:00:23]} 37... Nf5
{[%clk 0:00:13.7]} 38. Ng5+ {[%clk 0:00:19.5]} 38... Kg6 {[%clk 0:00:14]} 39.
Ne4 {[%clk 0:00:20.4]} 39... Ra3 {[%clk 0:00:13.2]} 40. e6 {[%clk 0:00:20.2]}
40... Ra6 {[%clk 0:00:10.6]} 41. Nc5 {[%clk 0:00:15.8]} 41... Ra3 {[%clk
0:00:09.4]} 42. Kg2 {[%clk 0:00:15.8]} 42... Ra2 {[%clk 0:00:09.3]} 43. Re1
{[%clk 0:00:16]} 43... Ne7 {[%clk 0:00:08]} 44. Re5 {[%clk 0:00:14.9]} 44... Rc2
{[%clk 0:00:06.7]} 45. Ne4 {[%clk 0:00:14.5]} 45... Ra2 {[%clk 0:00:03.6]} 46.
Rg5+ {[%clk 0:00:11]} 46... Kh6 {[%clk 0:00:02.4]} 47. f5 {[%clk 0:00:11.9]} 1-0

[Event "*** Titled Tuesday Blitz"]
[Site "Chess.com"]
[Date "2020.10.20"]
[Round "6"]
[White "Fischerev7"]
[Black "FMalexhdez"]
[Result "1-0"]
[WhiteElo "2412"]
[BlackElo "2262"]
[TimeControl "180+1"]
[EndTime "11:09:08 PDT"]
[Termination "Fischerev7 won on time"]

1. e4 {[%clk 0:02:52.4]} 1... c5 {[%clk 0:02:59.5]} 2. Nf3 {[%clk 0:02:50.4]}
2... d6 {[%clk 0:03:00.2]} 3. d4 {[%clk 0:02:50.5]} 3... cxd4 {[%clk 0:03:00.8]}
4. Nxd4 {[%clk 0:02:51.1]} 4... Nf6 {[%clk 0:03:00.2]} 5. Nc3 {[%clk 0:02:51.1]}
5... a6 {[%clk 0:03:00.8]} 6. Be3 {[%clk 0:02:50.3]} 6... e5 {[%clk 0:03:00.8]}
7. Nb3 {[%clk 0:02:50.9]} 7... Be6 {[%clk 0:03:00.7]} 8. f3 {[%clk 0:02:51.5]}
8... Nbd7 {[%clk 0:03:00.8]} 9. Qd2 {[%clk 0:02:52.1]} 9... Rc8 {[%clk
0:03:00.7]} 10. g4 {[%clk 0:02:49.4]} 10... Nb6 {[%clk 0:03:00.6]} 11. Na5
{[%clk 0:02:45.8]} 11... Qc7 {[%clk 0:02:53.9]} 12. g5 {[%clk 0:02:45.2]} 12...
Nfd7 {[%clk 0:02:53.4]} 13. O-O-O {[%clk 0:02:36.6]} 13... Nc4 {[%clk
0:02:47.1]} 14. Nxc4 {[%clk 0:02:36.1]} 14... Bxc4 {[%clk 0:02:46.3]} 15. Bxc4
{[%clk 0:02:34.9]} 15... Qxc4 {[%clk 0:02:45.6]} 16. Kb1 {[%clk 0:02:34.3]}
16... Be7 {[%clk 0:02:25.9]} 17. Nd5 {[%clk 0:02:33.1]} 17... Bd8 {[%clk
0:02:25.8]} 18. h4 {[%clk 0:02:28.4]} 18... O-O {[%clk 0:02:13.1]} 19. h5 {[%clk
0:02:26]} 19... f5 {[%clk 0:02:11.9]} 20. gxf6 {[%clk 0:01:59.1]} 20... Nxf6
{[%clk 0:02:11]} 21. Rhg1 {[%clk 0:01:18]} 21... Nxd5 {[%clk 0:02:09.7]} 22.
exd5 {[%clk 0:01:18.2]} 22... Rxf3 {[%clk 0:01:46.3]} 23. Bh6 {[%clk 0:01:01.1]}
23... Rc7 {[%clk 0:01:45.1]} 24. Bg5 {[%clk 0:00:34]} 24... Bxg5 {[%clk
0:01:22.8]} 25. Qxg5 {[%clk 0:00:25.2]} 25... Qxc2+ {[%clk 0:01:20.9]} 26. Ka1
{[%clk 0:00:25.3]} 26... Rf8 {[%clk 0:00:47.7]} 27. a3 {[%clk 0:00:20.3]} 27...
Qf5 {[%clk 0:00:45.8]} 28. Qh4 {[%clk 0:00:17.4]} 28... Rcf7 {[%clk 0:00:38]}
29. h6 {[%clk 0:00:14.4]} 29... g6 {[%clk 0:00:36.9]} 30. Qb4 {[%clk 0:00:13.2]}
30... Qd7 {[%clk 0:00:33.2]} 31. Rc1 {[%clk 0:00:12]} 31... Rf4 {[%clk
0:00:29.5]} 32. Qb3 {[%clk 0:00:12.4]} 32... Qb5 {[%clk 0:00:27.1]} 33. Qg3
{[%clk 0:00:06.3]} 33... Rf2 {[%clk 0:00:26]} 34. Rb1 {[%clk 0:00:06.3]} 34...
Qxd5 {[%clk 0:00:25.8]} 35. Qg5 {[%clk 0:00:05.1]} 35... R2f5 {[%clk 0:00:23.8]}
36. Qe7 {[%clk 0:00:05]} 36... Qf7 {[%clk 0:00:23.5]} 37. Qxd6 {[%clk
0:00:05.4]} 37... e4 {[%clk 0:00:22.5]} 38. Qd4 {[%clk 0:00:05]} 38... Qe7
{[%clk 0:00:19.4]} 39. Rge1 {[%clk 0:00:04.4]} 39... Re5 {[%clk 0:00:19]} 40.
Re3 {[%clk 0:00:04.1]} 40... Rd8 {[%clk 0:00:18.8]} 41. Qc3 {[%clk 0:00:04.1]}
41... b5 {[%clk 0:00:12.9]} 42. Rbe1 {[%clk 0:00:04.5]} 42... Re8 {[%clk
0:00:11.2]} 43. Rxe4 {[%clk 0:00:03.4]} 43... Rxe4 {[%clk 0:00:04.9]} 44. Rxe4
{[%clk 0:00:04.3]} 1-0

[Event "*** Titled Tuesday Blitz"]
[Site "Chess.com"]
[Date "2020.10.20"]
[Round "6"]
[White "Fins0905"]
[Black "igorkovalenko"]
[Result "0-1"]
[WhiteElo "2634"]
[BlackElo "2810"]
[TimeControl "180+1"]
[EndTime "11:09:10 PDT"]
[Termination "igorkovalenko won on time"]

1. d4 {[%clk 0:03:00.9]} 1... Nf6 {[%clk 0:01:53.8]} 2. Nf3 {[%clk 0:02:59.6]}
2... g6 {[%clk 0:01:53.2]} 3. Bg5 {[%clk 0:02:58.8]} 3... Bg7 {[%clk 0:01:53.5]}
4. Nbd2 {[%clk 0:02:59.1]} 4... d6 {[%clk 0:01:52.3]} 5. e3 {[%clk 0:02:58.9]}
5... h6 {[%clk 0:01:52]} 6. Bh4 {[%clk 0:02:58.6]} 6... b6 {[%clk 0:01:50.8]} 7.
Bb5+ {[%clk 0:02:53.8]} 7... c6 {[%clk 0:01:49.9]} 8. Bd3 {[%clk 0:02:53.1]}
8... Nbd7 {[%clk 0:01:50.3]} 9. h3 {[%clk 0:02:50.6]} 9... Bb7 {[%clk 0:01:49]}
10. Qe2 {[%clk 0:02:50.1]} 10... Qc7 {[%clk 0:01:45.9]} 11. O-O-O {[%clk
0:02:46.6]} 11... a6 {[%clk 0:01:45.9]} 12. Kb1 {[%clk 0:02:43]} 12... Nd5
{[%clk 0:01:44]} 13. c3 {[%clk 0:02:38.3]} 13... c5 {[%clk 0:01:43.3]} 14. Bg3
{[%clk 0:02:30.6]} 14... b5 {[%clk 0:01:37.5]} 15. e4 {[%clk 0:02:26.6]} 15...
N5b6 {[%clk 0:01:37.3]} 16. e5 {[%clk 0:02:24.4]} 16... dxe5 {[%clk 0:01:36.3]}
17. dxe5 {[%clk 0:02:08.1]} 17... e6 {[%clk 0:01:36.3]} 18. Ne4 {[%clk
0:01:53.2]} 18... O-O {[%clk 0:01:15.2]} 19. h4 {[%clk 0:01:33.9]} 19... Nxe5
{[%clk 0:00:50]} 20. h5 {[%clk 0:01:26.6]} 20... f5 {[%clk 0:00:49.9]} 21. Ned2
{[%clk 0:01:14.7]} 21... f4 {[%clk 0:00:45.1]} 22. Bh4 {[%clk 0:00:54.7]} 22...
g5 {[%clk 0:00:26.5]} 23. Bxg5 {[%clk 0:00:50.4]} 23... hxg5 {[%clk 0:00:16.3]}
24. Nxg5 {[%clk 0:00:51.3]} 24... Qe7 {[%clk 0:00:12.1]} 25. Ndf3 {[%clk
0:00:34.6]} 25... Nbd7 {[%clk 0:00:07.8]} 26. Be4 {[%clk 0:00:31.1]} 26... Nxf3
{[%clk 0:00:06.5]} 27. Nxf3 {[%clk 0:00:29.9]} 27... Bxe4+ {[%clk 0:00:05.6]}
28. Qxe4 {[%clk 0:00:30.8]} 28... Nf6 {[%clk 0:00:05.8]} 29. Qc2 {[%clk
0:00:28.1]} 29... Bh6 {[%clk 0:00:03.6]} 30. Ne5 {[%clk 0:00:27.4]} 30... Qh7
{[%clk 0:00:03.6]} 31. Ng6 {[%clk 0:00:28]} 31... Rfd8 {[%clk 0:00:03.7]} 32.
Rde1 {[%clk 0:00:27.9]} 32... Re8 {[%clk 0:00:03.5]} 33. Ka1 {[%clk 0:00:26.3]}
33... Rad8 {[%clk 0:00:03.7]} 34. Qe2 {[%clk 0:00:25.8]} 34... Qf7 {[%clk
0:00:04]} 35. Ne5 {[%clk 0:00:25.2]} 35... Qg7 {[%clk 0:00:04.2]} 36. Ng6 {[%clk
0:00:23.1]} 36... c4 {[%clk 0:00:03.9]} 37. Qe5 {[%clk 0:00:22.6]} 37... Nd5
{[%clk 0:00:04.1]} 38. Qe4 {[%clk 0:00:22]} 38... b4 {[%clk 0:00:03.7]} 39. Qxc4
{[%clk 0:00:19.6]} 39... bxc3 {[%clk 0:00:03.9]} 40. Ne5 {[%clk 0:00:19.2]}
40... cxb2+ {[%clk 0:00:03.9]} 41. Kb1 {[%clk 0:00:19.8]} 41... Qh7+ {[%clk
0:00:03.6]} 42. Ng6 {[%clk 0:00:19.8]} 42... Bg7 {[%clk 0:00:04.1]} 43. Qb3
{[%clk 0:00:11.2]} 43... Bf6 {[%clk 0:00:04.3]} 44. Rh3 {[%clk 0:00:09.9]} 44...
Qc7 {[%clk 0:00:04.3]} 45. Rd3 {[%clk 0:00:09]} 45... Kf7 {[%clk 0:00:04.6]} 46.
Red1 {[%clk 0:00:05.3]} 46... Rc8 {[%clk 0:00:05]} 47. Rxd5 {[%clk 0:00:01.6]}
47... Qc1+ {[%clk 0:00:04.9]} 0-1